[Event "*** Titled Tuesday Blitz"]
[Site "Chess.com"]
[Date "2020.04.21"]
[Round "4"]
[White "rasmussvane"]
[Black "Alexchess1984"]
[Result "1-0"]
[WhiteElo "2870"]
[BlackElo "2568"]
[TimeControl "180+1"]
[EndTime "10:40:43 PDT"]
[Termination "rasmussvane won by resignation"]

1. Nf3 {[%clk 0:03:00.9]} 1... g6 {[%clk 0:02:59.8]} 2. e4 {[%clk 0:02:59.7]}
2... c5 {[%clk 0:02:59.4]} 3. d4 {[%clk 0:02:56.6]} 3... cxd4 {[%clk 0:02:59.5]}
4. Nxd4 {[%clk 0:02:57.5]} 4... Nc6 {[%clk 0:02:59.3]} 5. c4 {[%clk 0:02:57.8]}
5... Nf6 {[%clk 0:02:59.3]} 6. Nc3 {[%clk 0:02:57.8]} 6... d6 {[%clk 0:02:59.7]}
7. Be3 {[%clk 0:02:57.5]} 7... Ng4 {[%clk 0:02:58.2]} 8. Nxc6 {[%clk 0:02:38.8]}
8... bxc6 {[%clk 0:02:45.3]} 9. Bc1 {[%clk 0:02:38.4]} 9... Qb6 {[%clk
0:02:43.2]} 10. Qc2 {[%clk 0:02:32.2]} 10... Bg7 {[%clk 0:02:42.2]} 11. h3
{[%clk 0:02:31.8]} 11... Ne5 {[%clk 0:02:36.4]} 12. Be3 {[%clk 0:02:29.6]} 12...
Qa5 {[%clk 0:02:34.7]} 13. Rc1 {[%clk 0:02:15.3]} 13... Rb8 {[%clk 0:02:29.7]}
14. Be2 {[%clk 0:02:09.5]} 14... O-O {[%clk 0:02:29]} 15. O-O {[%clk 0:02:08.5]}
15... f5 {[%clk 0:02:26]} 16. f4 {[%clk 0:02:04.8]} 16... Nf7 {[%clk 0:02:24]}
17. Bd3 {[%clk 0:01:57.7]} 17... Be6 {[%clk 0:02:09]} 18. b3 {[%clk 0:01:54.9]}
18... Nh6 {[%clk 0:01:34.7]} 19. Ne2 {[%clk 0:01:47.2]} 19... fxe4 {[%clk
0:01:30.6]} 20. Bxe4 {[%clk 0:01:48.1]} 20... Nf5 {[%clk 0:01:30.1]} 21. Bf2
{[%clk 0:01:46.1]} 21... d5 {[%clk 0:01:28.7]} 22. Bd3 {[%clk 0:01:46.1]} 22...
d4 {[%clk 0:01:16.5]} 23. Be4 {[%clk 0:01:25.5]} 23... c5 {[%clk 0:01:12.5]} 24.
Ng3 {[%clk 0:00:54.9]} 24... Nxg3 {[%clk 0:00:55.7]} 25. Bxg3 {[%clk 0:00:55]}
25... Bf5 {[%clk 0:00:56.6]} 26. Rce1 {[%clk 0:00:52.2]} 26... Rbe8 {[%clk
0:00:52.2]} 27. Bxf5 {[%clk 0:00:42.5]} 27... Rxf5 {[%clk 0:00:52.3]} 28. Qe2
{[%clk 0:00:41.1]} 28... h5 {[%clk 0:00:42.1]} 29. Bh4 {[%clk 0:00:26.5]} 29...
Kh7 {[%clk 0:00:40.7]} 30. g4 {[%clk 0:00:26.3]} 30... hxg4 {[%clk 0:00:36]} 31.
hxg4 {[%clk 0:00:27.2]} 31... Rf7 {[%clk 0:00:32.7]} 32. Rf3 {[%clk 0:00:25]}
32... Qb6 {[%clk 0:00:30.1]} 33. Qe4 {[%clk 0:00:22.2]} 33... Ref8 {[%clk
0:00:22.8]} 34. Kg2 {[%clk 0:00:17.4]} 34... Kg8 {[%clk 0:00:22.7]} 35. Bg5
{[%clk 0:00:16.6]} 35... e5 {[%clk 0:00:22.6]} 36. f5 {[%clk 0:00:15.8]} 36...
gxf5 {[%clk 0:00:22.1]} 37. gxf5 {[%clk 0:00:16.7]} 37... Qb7 {[%clk 0:00:21.1]}
38. Qxb7 {[%clk 0:00:16.8]} 38... Rxb7 {[%clk 0:00:21]} 39. f6 {[%clk
0:00:17.3]} 39... d3 {[%clk 0:00:19.9]} 40. fxg7 {[%clk 0:00:16.7]} 40... Rxg7
{[%clk 0:00:20.3]} 41. Rg3 {[%clk 0:00:13.4]} 41... Re8 {[%clk 0:00:15.6]} 42.
Bd2 {[%clk 0:00:11.2]} 42... Rxg3+ {[%clk 0:00:15.9]} 43. Kxg3 {[%clk
0:00:12.1]} 43... e4 {[%clk 0:00:16.7]} 44. Kf4 {[%clk 0:00:12.2]} 44... Kf7
{[%clk 0:00:17.5]} 45. Rxe4 {[%clk 0:00:11.8]} 45... Rd8 {[%clk 0:00:18.4]} 46.
Ke3 {[%clk 0:00:12]} 46... a6 {[%clk 0:00:17.9]} 47. Re5 {[%clk 0:00:12]} 47...
Kf6 {[%clk 0:00:17.6]} 48. Rd5 {[%clk 0:00:11.8]} 48... Re8+ {[%clk 0:00:17.5]}
49. Kxd3 {[%clk 0:00:11.7]} 49... Rg8 {[%clk 0:00:17.1]} 50. Rxc5 {[%clk
0:00:11.3]} 50... Ke6 {[%clk 0:00:17.3]} 51. Ra5 {[%clk 0:00:11]} 51... Rg3+
{[%clk 0:00:17.3]} 52. Be3 {[%clk 0:00:10.8]} 52... Kd7 {[%clk 0:00:16.2]} 53.
Rxa6 {[%clk 0:00:10.9]} 53... Kc7 {[%clk 0:00:16.2]} 54. Ra5 {[%clk 0:00:11]}
54... Kb7 {[%clk 0:00:16]} 55. Rd5 {[%clk 0:00:11.2]} 1-0

[Event "*** Titled Tuesday Blitz"]
[Site "Chess.com"]
[Date "2020.04.21"]
[Round "4"]
[White "nabukatnezarr"]
[Black "cassoulet"]
[Result "1-0"]
[WhiteElo "2493"]
[BlackElo "2637"]
[TimeControl "180+1"]
[EndTime "10:40:46 PDT"]
[Termination "nabukatnezarr won by checkmate"]

1. d4 {[%clk 0:03:00.9]} 1... d5 {[%clk 0:02:59.6]} 2. c4 {[%clk 0:02:59.2]}
2... e6 {[%clk 0:02:59.3]} 3. Nc3 {[%clk 0:02:59.1]} 3... Nf6 {[%clk 0:02:59.8]}
4. cxd5 {[%clk 0:02:59.1]} 4... exd5 {[%clk 0:02:59.7]} 5. Bg5 {[%clk
0:02:58.6]} 5... Be7 {[%clk 0:03:00.3]} 6. e3 {[%clk 0:02:58.5]} 6... Nbd7
{[%clk 0:03:00.6]} 7. Bd3 {[%clk 0:02:58.5]} 7... O-O {[%clk 0:03:00.4]} 8. Nge2
{[%clk 0:02:57.9]} 8... h6 {[%clk 0:03:00.7]} 9. Bh4 {[%clk 0:02:49.6]} 9... a6
{[%clk 0:03:00.5]} 10. O-O {[%clk 0:02:44.9]} 10... b6 {[%clk 0:03:00.8]} 11.
Rc1 {[%clk 0:02:37.7]} 11... Bb7 {[%clk 0:03:00.9]} 12. f3 {[%clk 0:02:30.8]}
12... Re8 {[%clk 0:02:59.5]} 13. Qd2 {[%clk 0:02:30.4]} 13... c5 {[%clk
0:02:59]} 14. Kh1 {[%clk 0:02:26.1]} 14... Nf8 {[%clk 0:02:46.2]} 15. Bf2 {[%clk
0:02:12]} 15... Ne6 {[%clk 0:02:39.3]} 16. Ng3 {[%clk 0:02:07.3]} 16... Rc8
{[%clk 0:02:24]} 17. Bb1 {[%clk 0:02:06.2]} 17... Bd6 {[%clk 0:02:18.8]} 18. Nf5
{[%clk 0:02:04.6]} 18... cxd4 {[%clk 0:02:16.5]} 19. Nxd4 {[%clk 0:02:01.1]}
19... Nxd4 {[%clk 0:02:14.4]} 20. exd4 {[%clk 0:02:02]} 20... b5 {[%clk
0:02:04.5]} 21. Bh4 {[%clk 0:02:01.8]} 21... b4 {[%clk 0:01:44]} 22. Ne2 {[%clk
0:01:40.8]} 22... Rxc1 {[%clk 0:01:43]} 23. Rxc1 {[%clk 0:01:38.2]} 23... Ne4
{[%clk 0:01:42.4]} 24. fxe4 {[%clk 0:01:36.9]} 24... Qxh4 {[%clk 0:01:40.4]} 25.
e5 {[%clk 0:01:37.3]} 25... Be7 {[%clk 0:01:35.7]} 26. Qd3 {[%clk 0:01:33.1]}
26... g6 {[%clk 0:01:21.1]} 27. e6 {[%clk 0:01:28.1]} 27... f5 {[%clk 0:01:21]}
28. Rc7 {[%clk 0:01:25]} 28... Bd6 {[%clk 0:01:15]} 29. g3 {[%clk 0:01:18.5]}
29... Qh3 {[%clk 0:00:53.9]} 30. Rc1 {[%clk 0:00:59.8]} 30... Rxe6 {[%clk
0:00:45]} 31. Nf4 {[%clk 0:00:40.1]} 31... Bxf4 {[%clk 0:00:40.8]} 32. gxf4
{[%clk 0:00:41]} 32... Qh4 {[%clk 0:00:35.1]} 33. Qg3 {[%clk 0:00:33.3]} 33...
Qf6 {[%clk 0:00:29.4]} 34. Rc7 {[%clk 0:00:17.2]} 34... Qxd4 {[%clk 0:00:23.6]}
35. Bxf5 {[%clk 0:00:08.9]} 35... Qd1+ {[%clk 0:00:18.9]} 36. Kg2 {[%clk
0:00:09.3]} 36... Re2+ {[%clk 0:00:09.5]} 37. Kh3 {[%clk 0:00:09.7]} 37... Qf1+
{[%clk 0:00:08.4]} 38. Kh4 {[%clk 0:00:09.8]} 38... Rg2 {[%clk 0:00:09]} 39.
Be6+ {[%clk 0:00:07.1]} 39... Kf8 {[%clk 0:00:08.2]} 40. Qe3 {[%clk 0:00:03.2]}
40... g5+ {[%clk 0:00:06.9]} 41. Kh5 {[%clk 0:00:02.7]} 41... Rxh2+ {[%clk
0:00:05.9]} 42. Kg6 {[%clk 0:00:02.6]} 42... Qb1+ {[%clk 0:00:05.9]} 43. Bf5
{[%clk 0:00:02.2]} 43... Qe1 {[%clk 0:00:02.2]} 44. Qxe1 {[%clk 0:00:01.9]}
44... Re2 {[%clk 0:00:02.8]} 45. Qxe2 {[%clk 0:00:01.9]} 45... Bc6 {[%clk
0:00:03.7]} 46. Qe7+ {[%clk 0:00:02.8]} 46... Kg8 {[%clk 0:00:03.9]} 47. Qg7#
{[%clk 0:00:03.1]} 1-0

[Event "*** Titled Tuesday Blitz"]
[Site "Chess.com"]
[Date "2020.04.21"]
[Round "4"]
[White "evgenyermolaev"]
[Black "DenishevM"]
[Result "1-0"]
[WhiteElo "2487"]
[BlackElo "2632"]
[TimeControl "180+1"]
[EndTime "10:40:46 PDT"]
[Termination "evgenyermolaev won on time"]

1. e4 {[%clk 0:03:00.9]} 1... g6 {[%clk 0:03:00.3]} 2. d4 {[%clk 0:03:00.4]}
2... Bg7 {[%clk 0:03:00.6]} 3. c4 {[%clk 0:02:55.8]} 3... d6 {[%clk 0:02:59.1]}
4. Nc3 {[%clk 0:02:55.3]} 4... Nc6 {[%clk 0:02:58.2]} 5. Nge2 {[%clk 0:02:52.8]}
5... e5 {[%clk 0:02:56.4]} 6. Be3 {[%clk 0:02:51.8]} 6... exd4 {[%clk
0:02:54.7]} 7. Nxd4 {[%clk 0:02:50.9]} 7... Nge7 {[%clk 0:02:55]} 8. Be2 {[%clk
0:02:45]} 8... O-O {[%clk 0:02:51.8]} 9. O-O {[%clk 0:02:38.6]} 9... f5 {[%clk
0:02:44.3]} 10. Nxc6 {[%clk 0:02:27.4]} 10... Nxc6 {[%clk 0:02:41]} 11. exf5
{[%clk 0:02:26.2]} 11... Bxf5 {[%clk 0:02:33.4]} 12. c5 {[%clk 0:02:22]} 12...
dxc5 {[%clk 0:02:11.2]} 13. Qb3+ {[%clk 0:02:21.1]} 13... Kh8 {[%clk 0:02:10]}
14. Bxc5 {[%clk 0:01:55.3]} 14... Nd4 {[%clk 0:02:09.8]} 15. Bxd4 {[%clk
0:01:42.2]} 15... Bxd4 {[%clk 0:01:58.7]} 16. Rad1 {[%clk 0:01:41.4]} 16... c5
{[%clk 0:01:51.8]} 17. Nb5 {[%clk 0:01:39.6]} 17... Qf6 {[%clk 0:01:22.9]} 18.
Nxd4 {[%clk 0:01:35.1]} 18... cxd4 {[%clk 0:01:23.8]} 19. Qxb7 {[%clk
0:01:28.5]} 19... Rab8 {[%clk 0:01:22.6]} 20. Qxa7 {[%clk 0:01:27]} 20... Rxb2
{[%clk 0:01:21.8]} 21. Bc4 {[%clk 0:00:49.6]} 21... d3 {[%clk 0:00:49.9]} 22.
Bxd3 {[%clk 0:00:45.6]} 22... Be6 {[%clk 0:00:31]} 23. a4 {[%clk 0:00:40.1]}
23... Rf7 {[%clk 0:00:25.5]} 24. Qe3 {[%clk 0:00:39.6]} 24... Bb3 {[%clk
0:00:22.8]} 25. Ra1 {[%clk 0:00:27.4]} 25... Bd5 {[%clk 0:00:16]} 26. a5 {[%clk
0:00:22.6]} 26... Qg7 {[%clk 0:00:13.8]} 27. Ra3 {[%clk 0:00:16.5]} 27... Re7
{[%clk 0:00:05.1]} 28. Qc5 {[%clk 0:00:14.1]} 28... Ba8 {[%clk 0:00:02.7]} 29.
Qc8+ {[%clk 0:00:12]} 29... Qg8 {[%clk 0:00:03]} 30. Qxg8+ {[%clk 0:00:09.8]}
30... Kxg8 {[%clk 0:00:03.9]} 31. a6 {[%clk 0:00:09.4]} 31... Kg7 {[%clk
0:00:03.5]} 32. a7 {[%clk 0:00:09.5]} 32... Rbb7 {[%clk 0:00:02.6]} 33. Rfa1
{[%clk 0:00:08.8]} 33... Rbd7 {[%clk 0:00:03]} 34. f3 {[%clk 0:00:07.4]} 34...
h5 {[%clk 0:00:02.6]} 35. Be4 {[%clk 0:00:07.7]} 35... Rd8 {[%clk 0:00:01.3]}
36. Ra6 {[%clk 0:00:07.6]} 36... g5 {[%clk 0:00:01.2]} 37. Bxa8 {[%clk
0:00:05.1]} 37... Rxa8 {[%clk 0:00:02.1]} 38. R6a5 {[%clk 0:00:05.4]} 38... Kg6
{[%clk 0:00:02.3]} 39. h3 {[%clk 0:00:05.4]} 39... h4 {[%clk 0:00:02.6]} 40.
Ra6+ {[%clk 0:00:05.9]} 40... Kh5 {[%clk 0:00:02.8]} 41. R1a5 {[%clk 0:00:06.5]}
41... Rg7 {[%clk 0:00:02.7]} 42. Kh2 {[%clk 0:00:06.6]} 42... Rf7 {[%clk
0:00:03.1]} 43. Ra4 {[%clk 0:00:06.2]} 43... Re7 {[%clk 0:00:03.4]} 44. R4a5
{[%clk 0:00:06.7]} 44... Rf7 {[%clk 0:00:03.7]} 45. Kh1 {[%clk 0:00:07.2]} 45...
Re7 {[%clk 0:00:04.2]} 46. f4 {[%clk 0:00:07.5]} 46... Rg7 {[%clk 0:00:01.5]}
47. Rxg5+ {[%clk 0:00:07.3]} 1-0

[Event "*** Titled Tuesday Blitz"]
[Site "Chess.com"]
[Date "2020.04.21"]
[Round "4"]
[White "kakakz"]
[Black "Zq1"]
[Result "0-1"]
[WhiteElo "2375"]
[BlackElo "2569"]
[TimeControl "180+1"]
[EndTime "10:40:46 PDT"]
[Termination "Zq1 won by checkmate"]

1. d4 {[%clk 0:03:00.9]} 1... Nf6 {[%clk 0:02:59.4]} 2. c4 {[%clk 0:03:00.8]}
2... a6 {[%clk 0:02:59.4]} 3. Nc3 {[%clk 0:02:59.4]} 3... c5 {[%clk 0:02:59.4]}
4. Nf3 {[%clk 0:02:52]} 4... cxd4 {[%clk 0:02:59]} 5. Nxd4 {[%clk 0:02:51.8]}
5... d5 {[%clk 0:02:58.8]} 6. e3 {[%clk 0:02:46.1]} 6... g6 {[%clk 0:02:52.4]}
7. Qb3 {[%clk 0:02:31.5]} 7... dxc4 {[%clk 0:02:46]} 8. Bxc4 {[%clk 0:02:29.7]}
8... e6 {[%clk 0:02:46.2]} 9. O-O {[%clk 0:02:00.8]} 9... Bg7 {[%clk 0:02:45.4]}
10. Rd1 {[%clk 0:02:00.1]} 10... Qe7 {[%clk 0:02:41.6]} 11. e4 {[%clk
0:01:32.3]} 11... O-O {[%clk 0:02:37]} 12. e5 {[%clk 0:01:06]} 12... Nfd7 {[%clk
0:02:18.6]} 13. f4 {[%clk 0:01:04.6]} 13... b5 {[%clk 0:02:11.6]} 14. Be2 {[%clk
0:00:49.5]} 14... Bb7 {[%clk 0:02:10.1]} 15. Be3 {[%clk 0:00:48.6]} 15... Rc8
{[%clk 0:01:47.8]} 16. Bf3 {[%clk 0:00:38.8]} 16... Bxf3 {[%clk 0:01:27.3]} 17.
Nxf3 {[%clk 0:00:39.7]} 17... Nc5 {[%clk 0:01:24.2]} 18. Bxc5 {[%clk 0:00:38.4]}
18... Qxc5+ {[%clk 0:01:22.8]} 19. Kh1 {[%clk 0:00:38.6]} 19... Nc6 {[%clk
0:01:18.1]} 20. Ne4 {[%clk 0:00:38.3]} 20... Qb4 {[%clk 0:01:16.5]} 21. Qxb4
{[%clk 0:00:28.7]} 21... Nxb4 {[%clk 0:01:15.8]} 22. Rd7 {[%clk 0:00:28.7]}
22... Rd8 {[%clk 0:00:58.7]} 23. Rad1 {[%clk 0:00:28.2]} 23... Nd5 {[%clk
0:00:57.4]} 24. Rxd8+ {[%clk 0:00:22.9]} 24... Rxd8 {[%clk 0:00:56.6]} 25. Nd6
{[%clk 0:00:23.2]} 25... Nxf4 {[%clk 0:00:53.3]} 26. Ng5 {[%clk 0:00:17.8]}
26... f6 {[%clk 0:00:28.9]} 27. Ngf7 {[%clk 0:00:16.9]} 27... Rd7 {[%clk
0:00:27.4]} 28. Rc1 {[%clk 0:00:12]} 28... fxe5 {[%clk 0:00:22.8]} 29. Rc8+
{[%clk 0:00:11.7]} 29... Bf8 {[%clk 0:00:22.7]} 30. g3 {[%clk 0:00:10.6]} 30...
Nd3 {[%clk 0:00:20.1]} 31. Kg2 {[%clk 0:00:07]} 31... Kg7 {[%clk 0:00:20.1]} 32.
Kf3 {[%clk 0:00:06.5]} 32... Bxd6 {[%clk 0:00:19.2]} 33. Ng5 {[%clk 0:00:05.9]}
33... Re7 {[%clk 0:00:17.1]} 34. Ke4 {[%clk 0:00:05.7]} 34... Nc5+ {[%clk
0:00:16.4]} 35. Ke3 {[%clk 0:00:06.1]} 35... h6 {[%clk 0:00:16.6]} 36. Ne4
{[%clk 0:00:06.4]} 36... Nxe4 {[%clk 0:00:15.9]} 37. Kxe4 {[%clk 0:00:07.3]}
37... Rc7 {[%clk 0:00:15.8]} 38. Re8 {[%clk 0:00:07]} 38... Be7 {[%clk
0:00:15.6]} 39. Ra8 {[%clk 0:00:06.4]} 39... Rc6 {[%clk 0:00:14.2]} 40. b3
{[%clk 0:00:05.3]} 40... Kf6 {[%clk 0:00:14.2]} 41. Rh8 {[%clk 0:00:04.6]} 41...
h5 {[%clk 0:00:13.5]} 42. Rg8 {[%clk 0:00:04.3]} 42... Rd6 {[%clk 0:00:13.4]}
43. Ra8 {[%clk 0:00:03.8]} 43... b4 {[%clk 0:00:12.6]} 44. Ke3 {[%clk
0:00:04.7]} 44... Rc6 {[%clk 0:00:11.1]} 45. Ke4 {[%clk 0:00:05.6]} 45... Bc5
{[%clk 0:00:10.1]} 46. Re8 {[%clk 0:00:04.1]} 46... Bd4 {[%clk 0:00:09.7]} 47.
Rf8+ {[%clk 0:00:04.2]} 47... Ke7 {[%clk 0:00:09.2]} 48. Rg8 {[%clk 0:00:03.6]}
48... Rc3 {[%clk 0:00:08.9]} 49. Rxg6 {[%clk 0:00:03.3]} 49... Re3# {[%clk
0:00:08.1]} 0-1

[Event "*** Titled Tuesday Blitz"]
[Site "Chess.com"]
[Date "2020.04.21"]
[Round "4"]
[White "XiaoKangZhong"]
[Black "HrvojeZagreb"]
[Result "1-0"]
[WhiteElo "2367"]
[BlackElo "2126"]
[TimeControl "180+1"]
[EndTime "10:40:49 PDT"]
[Termination "XiaoKangZhong won by resignation"]

1. e4 {[%clk 0:03:00.9]} 1... e6 {[%clk 0:03:00.2]} 2. d4 {[%clk 0:02:59.9]}
2... d5 {[%clk 0:03:00.4]} 3. Nd2 {[%clk 0:03:00.4]} 3... dxe4 {[%clk
0:02:59.8]} 4. Nxe4 {[%clk 0:03:01.3]} 4... Nd7 {[%clk 0:03:00.2]} 5. Nf3 {[%clk
0:03:00.7]} 5... Ngf6 {[%clk 0:03:00.5]} 6. Bd3 {[%clk 0:03:00.3]} 6... b6
{[%clk 0:02:59.7]} 7. O-O {[%clk 0:02:55.2]} 7... Bb7 {[%clk 0:02:59.8]} 8. Qe2
{[%clk 0:02:55.3]} 8... Be7 {[%clk 0:02:58.5]} 9. c3 {[%clk 0:02:54.1]} 9... O-O
{[%clk 0:02:58.1]} 10. Bf4 {[%clk 0:02:52.2]} 10... Nxe4 {[%clk 0:02:54.6]} 11.
Bxe4 {[%clk 0:02:53.1]} 11... Bxe4 {[%clk 0:02:54.9]} 12. Qxe4 {[%clk 0:02:54]}
12... c5 {[%clk 0:02:55.3]} 13. Rad1 {[%clk 0:02:51.8]} 13... Nf6 {[%clk
0:02:54.7]} 14. Qe2 {[%clk 0:02:49.9]} 14... Qc8 {[%clk 0:02:50.6]} 15. Rfe1
{[%clk 0:02:46.6]} 15... Rd8 {[%clk 0:02:47]} 16. dxc5 {[%clk 0:02:41.8]} 16...
Qxc5 {[%clk 0:02:42.8]} 17. Be3 {[%clk 0:02:26.8]} 17... Qh5 {[%clk 0:02:37]}
18. Rxd8+ {[%clk 0:02:21.1]} 18... Rxd8 {[%clk 0:02:37.9]} 19. Rd1 {[%clk
0:02:21.4]} 19... Rxd1+ {[%clk 0:02:34.8]} 20. Qxd1 {[%clk 0:02:22.3]} 20... Nd5
{[%clk 0:02:31.1]} 21. Bd4 {[%clk 0:02:12.6]} 21... Nf4 {[%clk 0:02:21.2]} 22.
Be5 {[%clk 0:01:53.4]} 22... Ng6 {[%clk 0:01:55]} 23. Bg3 {[%clk 0:01:38.9]}
23... Qb5 {[%clk 0:01:51.3]} 24. Qd2 {[%clk 0:01:34.5]} 24... f6 {[%clk
0:01:47.8]} 25. h4 {[%clk 0:01:32.5]} 25... e5 {[%clk 0:01:44.5]} 26. b3 {[%clk
0:01:26.3]} 26... Nf8 {[%clk 0:01:37.6]} 27. c4 {[%clk 0:01:25.6]} 27... Qd7
{[%clk 0:01:37.3]} 28. Qe2 {[%clk 0:01:18.3]} 28... Bc5 {[%clk 0:01:32.4]} 29.
Nd2 {[%clk 0:01:15.2]} 29... Ne6 {[%clk 0:01:29.1]} 30. Qg4 {[%clk 0:00:58.1]}
30... Qc6 {[%clk 0:01:11.2]} 31. Ne4 {[%clk 0:00:56]} 31... Nd4 {[%clk
0:01:07.5]} 32. Nxc5 {[%clk 0:00:48.3]} 32... bxc5 {[%clk 0:01:08.4]} 33. h5
{[%clk 0:00:44.3]} 33... Qe6 {[%clk 0:01:02.5]} 34. Qxe6+ {[%clk 0:00:39.7]}
34... Nxe6 {[%clk 0:01:03.4]} 35. f3 {[%clk 0:00:40]} 35... Kf7 {[%clk
0:00:56.9]} 36. Bf2 {[%clk 0:00:38.9]} 36... Nd4 {[%clk 0:00:43.9]} 37. Kf1
{[%clk 0:00:34.7]} 37... Ke6 {[%clk 0:00:43.3]} 38. Be3 {[%clk 0:00:31.1]} 38...
f5 {[%clk 0:00:24.4]} 39. Kf2 {[%clk 0:00:22.5]} 39... f4 {[%clk 0:00:21.3]} 40.
Bc1 {[%clk 0:00:21.4]} 40... Kf5 {[%clk 0:00:19.2]} 41. Ba3 {[%clk 0:00:19.7]}
41... Ne6 {[%clk 0:00:16.2]} 42. Bb2 {[%clk 0:00:20]} 42... Nd4 {[%clk 0:00:10]}
43. Bc3 {[%clk 0:00:20.2]} 43... Kg5 {[%clk 0:00:09.4]} 44. Ba5 {[%clk
0:00:18.5]} 44... Kxh5 {[%clk 0:00:08.5]} 45. Bc7 {[%clk 0:00:18.7]} 45... Nc6
{[%clk 0:00:05.4]} 46. Bd6 {[%clk 0:00:18.9]} 46... Kg5 {[%clk 0:00:04.2]} 47.
Bxc5 {[%clk 0:00:18.7]} 47... Kf5 {[%clk 0:00:04.8]} 48. b4 {[%clk 0:00:18.1]}
48... a6 {[%clk 0:00:05.1]} 49. a4 {[%clk 0:00:17.9]} 49... g5 {[%clk
0:00:04.2]} 50. b5 {[%clk 0:00:18.2]} 50... axb5 {[%clk 0:00:04.8]} 51. cxb5
{[%clk 0:00:18.2]} 51... Nd8 {[%clk 0:00:04.8]} 52. a5 {[%clk 0:00:16.1]} 52...
Ke6 {[%clk 0:00:05]} 53. a6 {[%clk 0:00:15.4]} 53... Kd7 {[%clk 0:00:05.2]} 54.
a7 {[%clk 0:00:15]} 54... Nb7 {[%clk 0:00:04.9]} 55. a8=Q {[%clk 0:00:15]} 55...
Nxc5 {[%clk 0:00:04.9]} 56. Qc6+ {[%clk 0:00:15.7]} 56... Ke7 {[%clk 0:00:04.5]}
57. Qxc5+ {[%clk 0:00:16.6]} 57... Kf7 {[%clk 0:00:05.2]} 58. b6 {[%clk
0:00:17.2]} 1-0

[Event "*** Titled Tuesday Blitz"]
[Site "Chess.com"]
[Date "2020.04.21"]
[Round "4"]
[White "Kavyev_Ruslan"]
[Black "Rakesh"]
[Result "1-0"]
[WhiteElo "2584"]
[BlackElo "2392"]
[TimeControl "180+1"]
[EndTime "10:40:52 PDT"]
[Termination "Kavyev_Ruslan won on time"]

1. e4 {[%clk 0:03:00.9]} 1... c5 {[%clk 0:02:58.7]} 2. Nf3 {[%clk 0:02:59.8]}
2... e6 {[%clk 0:02:58.5]} 3. d4 {[%clk 0:02:59.7]} 3... cxd4 {[%clk 0:02:59.3]}
4. Nxd4 {[%clk 0:03:00.6]} 4... a6 {[%clk 0:02:59.3]} 5. Bd3 {[%clk 0:03:00.2]}
5... Nc6 {[%clk 0:02:58.1]} 6. Nxc6 {[%clk 0:02:58.1]} 6... dxc6 {[%clk
0:02:59]} 7. c4 {[%clk 0:02:58.8]} 7... e5 {[%clk 0:02:58.5]} 8. Nc3 {[%clk
0:02:58.5]} 8... Nf6 {[%clk 0:02:57.7]} 9. O-O {[%clk 0:02:58.5]} 9... Bc5
{[%clk 0:02:57.4]} 10. h3 {[%clk 0:02:47.7]} 10... Be6 {[%clk 0:02:51.3]} 11.
Qe2 {[%clk 0:02:46.8]} 11... Qe7 {[%clk 0:02:49.3]} 12. Be3 {[%clk 0:02:46.7]}
12... O-O-O {[%clk 0:02:48.5]} 13. a3 {[%clk 0:02:42.4]} 13... h6 {[%clk
0:02:32]} 14. b4 {[%clk 0:02:42.1]} 14... Bd4 {[%clk 0:02:31.6]} 15. Rfc1 {[%clk
0:02:39.6]} 15... g5 {[%clk 0:02:30]} 16. Rab1 {[%clk 0:02:39.3]} 16... g4
{[%clk 0:02:29.2]} 17. hxg4 {[%clk 0:02:33]} 17... Nxg4 {[%clk 0:02:26.7]} 18.
Bxd4 {[%clk 0:02:12.1]} 18... exd4 {[%clk 0:02:15.2]} 19. f3 {[%clk 0:02:11.4]}
19... Ne3 {[%clk 0:01:56.7]} 20. Nd5 {[%clk 0:01:56.1]} 20... cxd5 {[%clk
0:01:44.2]} 21. cxd5+ {[%clk 0:01:57]} 21... Kb8 {[%clk 0:01:45.1]} 22. dxe6
{[%clk 0:01:56.7]} 22... Rhg8 {[%clk 0:01:44.7]} 23. g4 {[%clk 0:01:33.9]} 23...
fxe6 {[%clk 0:01:41.8]} 24. b5 {[%clk 0:01:32.5]} 24... a5 {[%clk 0:01:37.2]}
25. b6 {[%clk 0:01:32.5]} 25... h5 {[%clk 0:01:31.3]} 26. Rc7 {[%clk 0:01:32.2]}
26... Qd6 {[%clk 0:01:15.4]} 27. e5 {[%clk 0:00:57.7]} 27... hxg4 {[%clk
0:00:42.5]} 28. exd6 {[%clk 0:00:50.6]} 28... gxf3+ {[%clk 0:00:42.3]} 29. Kf2
{[%clk 0:00:51.2]} 29... fxe2 {[%clk 0:00:42.5]} 30. Kxe2 {[%clk 0:00:46.8]}
30... Rg2+ {[%clk 0:00:39.4]} 31. Kf3 {[%clk 0:00:46.9]} 31... Rf8+ {[%clk
0:00:20.4]} 32. Ke4 {[%clk 0:00:47.1]} 32... Nd5 {[%clk 0:00:17.2]} 33. Ke5
{[%clk 0:00:35.4]} 33... Rg5+ {[%clk 0:00:09.4]} 34. Kxe6 {[%clk 0:00:32.5]}
34... Rf6+ {[%clk 0:00:09]} 35. Kd7 {[%clk 0:00:32.8]} 35... Rg7+ {[%clk
0:00:08.9]} 36. Ke8 {[%clk 0:00:33.3]} 36... Rg8+ {[%clk 0:00:07.3]} 37. Kd7
{[%clk 0:00:31.7]} 37... Rg7+ {[%clk 0:00:07.1]} 38. Ke8 {[%clk 0:00:32.1]}
38... Rg8+ {[%clk 0:00:06.8]} 39. Kd7 {[%clk 0:00:32]} 39... Rf7+ {[%clk
0:00:03]} 40. Ke6 {[%clk 0:00:30.9]} 40... Rf6+ {[%clk 0:00:01.8]} 41. Kxd5
{[%clk 0:00:30.9]} 41... Rg5+ {[%clk 0:00:02.3]} 42. Kc4 {[%clk 0:00:30.4]}
42... Rxd6 {[%clk 0:00:02.8]} 43. Re1 {[%clk 0:00:28.3]} 43... Rxb6 {[%clk
0:00:03]} 44. Ree7 {[%clk 0:00:21.3]} 44... a4 {[%clk 0:00:01.9]} 45. Be4 {[%clk
0:00:19.8]} 45... Ka7 {[%clk 0:00:02.4]} 46. Rxb7+ {[%clk 0:00:19.7]} 46... Rxb7
{[%clk 0:00:02.8]} 47. Rxb7+ {[%clk 0:00:20.6]} 47... Ka6 {[%clk 0:00:03.5]} 48.
Rb4 {[%clk 0:00:21.3]} 48... Ka5 {[%clk 0:00:03.6]} 49. Kxd4 {[%clk 0:00:20.1]}
49... Rc5 {[%clk 0:00:03.5]} 50. Kxc5 {[%clk 0:00:20.2]} 1-0